Cogmind - Beta 14 @@@ ROGUE MODE // 2024.12.06 @ 23:05:28 Player: Sunvar Result: Self-destructed Performance ------------- Evolutions (4) 2000 Regions Visited (5) 1000 Robots Destroyed (33) 165 Value Destroyed (800) 800 Prototype IDs (7) 140 Alien Tech Used (0) 0 Bonus (300) 300 TOTAL SCORE: 4405 Bonus ------- Registered with UFD 300 Cogmind --------- Core Integrity 732/850 Matter 266/300 Energy 210/210 System Corruption 0% Temperature Cool (0) Movement Rolling (115) Ox1 Location -6/Factory Parts ------- > --- POWER (2) -------- Light Nuclear Core Micro Nuclear Core > --- PROPULSION (4) --- Light Treads Light Treads Compact Wheel Compact Wheel > --- UTILITY (7) ------ Advanced Heat Sink Disposable Heat Sink Large Storage Unit Deep Structural Scanner Triangulator Improved Light Armor Plating A0-MCA's Component Scanner > --- WEAPON (2) ------- Hypervelocity Gauss Rifle Companion Sword > --- INVENTORY (15) --- Light Treads Light Treads Wheel Compact Wheel Biomechanical Wings Advanced Heat Sink Coolant Injector Triangulator Mapping Drone Bay (3/3) Medium Laser Particle Gun Improved Datajack CPS Tube (2) CPS Tube (2) Peak State ------------ > --- POWER ------------ Light Nuclear Core Micro Nuclear Core > --- PROPULSION ------- Light Treads Light Treads Compact Wheel Compact Wheel > --- UTILITY ---------- Advanced Heat Sink Disposable Heat Sink Large Storage Unit Deep Structural Scanner Triangulator Improved Light Armor Plating A0-MCA's Component Scanner > --- WEAPON ----------- Hypervelocity Gauss Rifle Companion Sword > --- INVENTORY -------- Light Treads Light Treads Wheel Compact Wheel Biomechanical Wings Advanced Heat Sink Coolant Injector Triangulator Mapping Drone Bay Medium Laser Particle Gun Improved Datajack CPS Tube CPS Tube [Rating: 55] Favorites ----------- Power Improved Ion Engine Engine Improved Ion Engine Power Core Micro Nuclear Core Propulsion Light Treads Treads Light Treads Leg Aluminum Leg Wheel Compact Wheel Utility Large Storage Unit Device Advanced Heat Sink Storage Large Storage Unit Processor A0-MCA's Component Scanner Protection Light Armor Plating Weapon Assault Rifle Energy Gun Medium Laser Ballistic Gun Assault Rifle Ballistic Cannon Gauss Cannon Slashing Weapon Companion Sword Build | -11 -10 -10 -8 -8 -6 ------- Run | Yrd Mat Sub Rec Scr Fac Slots Evolved 8 | . . . . . 8 Power 1 | . . . . . 1 Propulsion 2 | . . . . . 2 Utility 5 | . . . . . 5 Weapon . | . . . . . . Parts Attached 44 | . 7 6 1 6 24 Power 6 | . . 1 1 . 4 Engine 4 | . . 1 1 . 2 Core 2 | . . . . . 2 Reactor . | . . . . . . Propulsion 11 | . 2 2 . 1 6 Treads 7 | . 2 2 . . 3 Leg . | . . . . . . Wheel 4 | . . . . 1 3 Hover . | . . . . . . Flight . | . . . . . . Utility 15 | . 4 1 . 1 9 Device 9 | . 1 . . . 8 Storage 2 | . 2 . . . . Processor 1 | . . . . 1 . Hackware . | . . . . . . Protection 3 | . 1 1 . . 1 Artifact . | . . . . . . Weapon 12 | . 1 2 . 4 5 Energy Gun 3 | . . 1 . 1 1 Energy Cannon . | . . . . . . Ballistic Gun 5 | . 1 1 . 2 1 Ballistic Cannon 1 | . . . . . 1 Launcher . | . . . . . . Special Weapon . | . . . . . . Impact Weapon . | . . . . . . Slashing Weapon 3 | . . . . 1 2 Piercing Weapon . | . . . . . . Special Melee Weapon . | . . . . . . Unidentified Prototypes . | . . . . . . Parts Lost 16 | . . 6 1 . 9 Power 4 | . . 1 . . 3 Propulsion 6 | . . 2 . . 4 Utility 2 | . . 1 1 . . Weapon 4 | . . 2 . . 2 Highest Loss Streak 3 | . . 3 1 . 3 To Critical Strikes . | . . . . . . Average Slot Usage (%) 92 | . 99 98 96 90 85 Engine 13 | . 14 13 14 14 7 Treads 22 | . 25 27 28 21 12 Wheel 4 | . . . . 6 9 Device 3 | . 1 . . . 27 Storage 12 | . 14 14 14 14 6 Processor 3 | . . . . 5 6 Protection 4 | . 11 13 10 . . Energy Gun 9 | . 14 9 14 9 . Ballistic Gun 12 | . 13 18 14 13 2 Slashing Weapon 3 | . . . . 4 5 Peak Build Rating 55 | . 9 8 8 28 55 Average Rating 16 | . 7 7 7 15 45 On Entrance 10 | 6 6 8 8 8 28 Naked Turns . | . . . . . . Heaviest Build 48 | 11 29 32 32 36 48 Greatest Support 46 | 20 46 40 40 40 32 Greatest Overweight (x) 2 | . . 1 . 2 2 Average Overweight (x) . | . . . . . 1 Largest Inventory Capacity 15 | . 15 15 15 15 15 Average Capacity 14 | . 11 15 15 15 15 Most Carried 15 | . 11 12 10 15 15 Average Carried 12 | . 9 11 9 14 9 Final Capacity 15 | 8 15 15 15 15 15 Final Carried 14 | 6 11 9 10 13 14 Class Distribution -------------------- 88% | Mutant 11% | Scavenger-Mutant Dominant Class ---------------- Mutant | -10/Materials Mutant | -10/Subcaves Mutant | -8/Recycling Mutant | -8/Scraptown Scavenger-Mutant | -6/Factory Resources | -11 -10 -10 -8 -8 -6 ----------- Run | Yrd Mat Sub Rec Scr Fac Matter Collected 1018 | 200 145 107 97 34 435 Remotely . | . . . . . . Salvage Created 1117 | . 293 239 125 . 460 Parts 75 | . 26 18 5 . 26 Haulers Intercepted 2 | . 2 . . . . Recyclers Shooed 7 | . 1 . 2 . 4 Parts Field Recycled . | . . . . . . Retrieved Matter . | . . . . . . Parts Self-Destructed 14 | . . 14 . . . Prevented . | . . . . . . Kills | -11 -10 -10 -8 -8 -6 ------- Run | Yrd Mat Sub Rec Scr Fac Combat Hostiles Destroyed 26 | . 8 9 1 . 8 Melee 2 | . . . . . 2 Guns 21 | . 8 9 1 . 3 Cannons 1 | . . . . . 1 AOE 2 | . . . . . 2 Classes Destroyed 8 | . 3 2 2 . 1 Builder 1 | . . . . . 1 Hauler 2 | . 2 . . . . Recycler 2 | . . . 1 . 1 Turret 2 | . . 2 . . . Swarmer 16 | . 6 7 . . 3 Grunt 5 | . 2 . . . 3 Sentry 3 | . . . 1 . 2 Subdweller 2 | . . 2 . . . Best Kill Streak 5 | . 5 4 2 . 3 Combat Bots Only 5 | . 5 4 1 . 3 Max Kills in Single Turn 2 | . 1 2 1 . 2 Gunslinging 1 | . . 1 . . . Exploded 2 | . . . . . 2 Melee 1 | . . . . . 1 Uniques/NPCs Destroyed . | . . . . . . Combat | -11 -10 -10 -8 -8 -6 -------- Run | Yrd Mat Sub Rec Scr Fac Hostile Shots Fired 312 | . 44 106 12 . 150 Missed 87 | . 10 33 3 . 41 Damage Taken 2386 | . 307 673 122 . 1284 Core 249 | . 25 91 15 . 118 Absorbed by Shields . | . . . . . . Core Remaining (%) 73 | 100 . . . 47 . Volleys Fired 112 | . 30 30 11 . 41 Largest 2 | . 2 2 2 . 2 Hottest 98 | . 60 70 70 . 98 Shots Fired 189 | . 60 60 22 . 47 Gun 175 | . 60 60 22 . 33 Cannon 14 | . . . . . 14 Launcher . | . . . . . . Special . | . . . . . . Kinetic 125 | . 30 43 11 . 41 Thermal 64 | . 30 17 11 . 6 Explosive . | . . . . . . Electromagnetic . | . . . . . . Robot Hit Streak 18 | . 8 11 18 . 8 Robot Miss Streak 4 | . 3 2 1 . 4 Penetration Max 1 | . . . . . 1 Secondary Targets 5 | . 3 2 . . . Max Gunslinging Chain 1 | . 1 1 . . . Shots Hit Robots 125 | . 32 40 19 . 34 Core Hits 58 | . 16 19 4 . 19 Critical Kills 3 | . . . . . 3 Critical Parts Destroyed 1 | . . . . . 1 Critical Strikes 6 | . . 1 . . 5 Burn 2 | . . 1 . . 1 Destroy 4 | . . . . . 4 Melee Attacks 17 | . . . . . 17 Impact . | . . . . . . Slashing 17 | . . . . . 17 Piercing . | . . . . . . Sneak Attacks 4 | . . . . . 4 Combat Hostiles . | . . . . . . Follow-up Attacks . | . . . . . . Damage Inflicted 2260 | . 400 510 240 . 1110 Guns 1293 | . 378 510 240 . 165 Cannons 249 | . . . . . 249 Explosions 227 | . . . . . 227 Melee 466 | . . . . . 466 Ramming 25 | . 22 . . . 3 Kinetic 1010 | . 166 365 127 . 352 Thermal 532 | . 212 145 113 . 62 Explosive 227 | . . . . . 227 Electromagnetic . | . . . . . . Impact . | . . . . . . Slashing 466 | . . . . . 466 Piercing . | . . . . . . Highest Corruption . | . . . . . . Average Corruption . | . . . . . . Corruption Purged . | . . . . . . Corruption Blocked . | . . . . . . Overload Shots . | . . . . . . Overflow Damage 55 | . . . . . 55 Projectiles 17 | . . . . . 17 Explosions . | . . . . . . Melee 38 | . . . . . 38 Knockbacks 3 | . . . . . 3 Impact 1 | . . . . . 1 Kinetic 2 | . . . . . 2 Secondary . | . . . . . . Self-Inflicted Damage . | . . . . . . Shots . | . . . . . . Rammed 7 | . 6 . . . 1 Targets Rammed 7 | . 6 . . . 1 Kicked . | . . . . . . Crushed . | . . . . . . Highest Temperature 111 | . 111 4 108 . 59 Average Temperature 36 | . 33 4 49 . 24 Received Heat Transfer 699 | . 57 234 54 . 354 Siege Activations . | . . . . . . Robots Corrupted . | . . . . . . Combat Hostiles . | . . . . . . Parts Fried . | . . . . . . Impact Corruptions . | . . . . . . Robots Melted . | . . . . . . Combat Hostiles . | . . . . . . Parts Melted 1 | . . 1 . . . Heat Transferred 1549 | . 475 482 333 . 259 Parts Sabotaged . | . . . . . . Parts Stolen . | . . . . . . Parts Stripped . | . . . . . . Power Chain Reactions . | . . . . . . Alert | -11 -10 -10 -8 -8 -6 ------- Run | Yrd Mat Sub Rec Scr Fac Peak Influence 214 | . 214 . 105 . 159 Initial 76 | . . . 76 . . Average 54 | . 49 . 75 . 47 Maximum Alert Level 1 | . 1 . . . . Low Security (%) 99 | . 98 . 100 . 100 Level 1 . | . 1 . . . . Level 2 . | . . . . . . Level 3 . | . . . . . . Level 4 . | . . . . . . Level 5 . | . . . . . . High Security . | . . . . . . Max Security . | . . . . . . Squads Dispatched 3 | . . . . . 3 Investigation 1 | . . . . . 1 Extermination 1 | . . . . . 1 Reinforcement 1 | . . . . . 1 Assault . | . . . . . . Garrison . | . . . . . . Intercept . | . . . . . . Searches Triggered . | . . . . . . Construction Impeded . | . . . . . . Haulers Reinforced . | . . . . . . Active Scanning Responses . | . . . . . . Cargo Convoy Interrupts . | . . . . . . Stealth | -11 -10 -10 -8 -8 -6 --------- Run | Yrd Mat Sub Rec Scr Fac Distress Signals 3 | . 3 . . . . Communications Jammed . | . . . . . . Distress Signals . | . . . . . . Times Spotted 51 | . 21 13 1 . 16 Peak Tracking Total 9 | . 9 4 1 . 6 Tactical Retreats 7 | . 2 3 . . 2 Traps | -11 -10 -10 -8 -8 -6 ------- Run | Yrd Mat Sub Rec Scr Fac Traps Triggered 1 | . . . . . 1 Indirectly . | . . . . . . Trap Hack Attempts . | . . . . . . Triggered . | . . . . . . Disarmed 4 | . 4 . . . . Reprogrammed . | . . . . . . Reused . | . . . . . . Traps Extracted . | . . . . . . Installed . | . . . . . . Triggered . | . . . . . . Machines | -11 -10 -10 -8 -8 -6 ---------- Run | Yrd Mat Sub Rec Scr Fac Machines Disabled 4 | . . . . . 4 Max in Single Turn 4 | . . . . . 4 Machines Repaired . | . . . . . . Machines Dismantled . | . . . . . . Machines Sabotaged . | . . . . . . Overloaded Fab Kills . | . . . . . . Hacking | -11 -10 -10 -8 -8 -6 --------- Run | Yrd Mat Sub Rec Scr Fac Machines Accessed 9 | . 2 . 3 4 . Terminals 5 | . 2 . 3 . . Fabricators . | . . . . . . Repair Stations . | . . . . . . Recycling Units . | . . . . . . Scanalyzers . | . . . . . . Garrison Access . | . . . . . . Total Hacks 41 | . 3 . 8 30 . Successful 36 | . 1 . 5 30 . Failed 5 | . 2 . 3 . . Catastrophic . | . . . . . . Database Lockouts . | . . . . . . Manual 6 | . 1 . 5 . . Terminals 11 | . 3 . 8 . . Fabricators . | . . . . . . Repair Stations . | . . . . . . Recycling Units . | . . . . . . Scanalyzers . | . . . . . . Garrison Access . | . . . . . . Terminal Hacks 35 | . 1 . 4 30 . Record 29 | . . . . 29 . Open Door 1 | . . . . 1 . Locate Traps 1 | . . . 1 . . Disarm Traps 1 | . 1 . . . . Hauler Manifests 1 | . . . 1 . . Zone Layout 2 | . . . 2 . . Fabricator Hacks . | . . . . . . Repair Station Hacks . | . . . . . . Recycling Unit Hacks . | . . . . . . Scanalyzer . | . . . . . . Garrison Access Hacks . | . . . . . . Unauthorized Hacks 1 | . . . 1 . . Terminals 1 | . . . 1 . . Botnet 1 | . . . 1 . . Fabricators . | . . . . . . Repair Stations . | . . . . . . Recycling Units . | . . . . . . Scanalyzers . | . . . . . . Garrison Access . | . . . . . . Data Cores Recovered . | . . . . . . Used . | . . . . . . Hacking Detections 4 | . 1 . 3 . . Full Trace Events . | . . . . . . Feedback Events . | . . . . . . Feedback Blocked . | . . . . . . Robot Schematics Acquired . | . . . . . . Robots Built . | . . . . . . Authchips . | . . . . . . Time . | . . . . . . Total Robot Build Rating . | . . . . . . Part Schematics Acquired . | . . . . . . Parts Built . | . . . . . . Authchips . | . . . . . . Time . | . . . . . . Total Part Build Rating . | . . . . . . Parts Repaired . | . . . . . . Time . | . . . . . . Parts Recycled . | . . . . . . Recycled Matter . | . . . . . . Retrieved Matter . | . . . . . . Retrieved Components . | . . . . . . Parts Scanalyzed . | . . . . . . Part Schematics Acquired . | . . . . . . Parts Damaged . | . . . . . . Bothacking | -11 -10 -10 -8 -8 -6 ------------ Run | Yrd Mat Sub Rec Scr Fac Used RIF Installer . | . . . . . . Robots Hacked . | . . . . . . Non-combat . | . . . . . . Combat . | . . . . . . Robot Hacks Applied . | . . . . . . Relay Couplers Released . | . . . . . . Fabnet Peak Effective % . | . . . . . . Robots Rewired . | . . . . . . Allies Hacked . | . . . . . . Hacks Repelled . | . . . . . . Allies | -11 -10 -10 -8 -8 -6 -------- Run | Yrd Mat Sub Rec Scr Fac Total Allies . | . . . . . . Largest Group . | . . . . . . Highest-Rated Group . | . . . . . . Highest-Rated Ally . | . . . . . . Total Orders . | . . . . . . Ally Attacks . | . . . . . . Total Damage . | . . . . . . Kills . | . . . . . . Allies Corrupted . | . . . . . . Allies Melted . | . . . . . . Intel | -11 -10 -10 -8 -8 -6 ------- Run | Yrd Mat Sub Rec Scr Fac Robot Analysis Total . | . . . . . . Derelict Logs Recovered 2 | . . 1 . 1 . Drone Launches . | . . . . . . Drone Recoveries . | . . . . . . Exploration | -11 -10 -10 -8 -8 -6 ------------- Run | Yrd Mat Sub Rec Scr Fac Turns Passed 6629 | . 977 914 445 3436 857 Spaces Moved 4163 | 1 542 501 257 2386 476 Core . | . . . . . . Treads 2420 | . 482 501 257 1180 . Legs 61 | 1 60 . . . . Wheels 1682 | . . . . 1206 476 Hover . | . . . . . . Flight . | . . . . . . Fastest Speed 105 | 120 120 160 160 115 105 Average Speed 145 | 120 155 161 160 142 123 Slowest Speed 240 | 120 160 240 160 160 130 Overloaded Moves . | . . . . . . Propulsion Burnouts . | . . . . . . Robots Hopped . | . . . . . . Cave-ins Triggered . | . . . . . . Exploration Rate (%) 45 | 1 92 30 47 93 12 Regions Visited 5 Branch Regions 3 Pre-discovered Areas 4 | . . 1 . 3 . Known Exits Taken . | . . . . . . Unknown Exits Taken 5 | 1 1 1 1 1 . Scrap Searched 4 | . . . . 4 . Spaces Dug 2 | . . . . . 2 Terrain Destroyed 32 | . . . . . 32 Melee 2 | . . . . . 2 Projectile 1 | . . . . . 1 AOE 29 | . . . . . 29 Terrain Rammed . | . . . . . . Walls Destroyed . | . . . . . . Machines Disabled . | . . . . . . Actions | -11 -10 -10 -8 -8 -6 --------- Run | Yrd Mat Sub Rec Scr Fac Total 4529 | . 617 546 268 2429 669 Wait 136 | . 14 7 . 16 99 Move 4158 | . 541 500 256 2385 476 Hop . | . . . . . . Pick Up 30 | . 10 3 . 11 6 Fast Attach 18 | . 2 . . 4 12 Attach 19 | . 2 6 . 1 10 Detach 8 | . 1 . . 2 5 Swap 7 | . 3 . 1 1 2 Drop 17 | . 8 . . 9 . Fire 112 | . 30 30 11 . 41 Melee 17 | . . . . . 17 Ram . | . . . . . . Kick . | . . . . . . Crush 7 | . 6 . . . 1 Escape Stasis . | . . . . . . Rewire . | . . . . . . Trap . | . . . . . . Miscellaneous . | . . . . . . Route ------- -11/Scrapyard -10/Materials (discovered 6 exits: [*Mat x3] / [*Min x2] / [*Sub]) -10/Subcaves -8/Recycling (discovered 2 exits: [*Fac] / *Scr) -8/Scraptown (discovered 2 exits: [*Fac x2]) -6/Factory (discovered 4 exits: *Fac x4) History --------- Turn | Location | Event 1 | -11/Scrapyard | Discovered new exit (range 0) 1 | -11/Scrapyard | Entered Materials 155 | -10/Materials | Discovered new exit (range 15) 305 | -10/Materials | Build established: Mutant 319 | -10/Materials | Discovered new exit (range 8) 593 | -10/Materials | Discovered new exit (range 14) 729 | -10/Materials | Discovered new exit (range 7) 745 | -10/Materials | Discovered new exit (range 13) 969 | -10/Materials | Discovered new exit (range 7) 978 | -10/Materials | Entered Subcaves 1596 | -10/Subcaves | Learned location of Storage (-8) 1802 | -10/Subcaves | Discovered new exit (range 14) 1862 | -10/Subcaves | Lost 3 parts (2n1w) 1892 | -10/Subcaves | Entered Recycling 2145 | -8/Recycling | Discovered new exit (range 5) 2247 | -8/Recycling | Core integrity fell below 50% 2289 | -8/Recycling | Scanned before Scraplab entrance 2311 | -8/Recycling | Entered Scraplab 2335 | -8/Recycling | Discovered new exit (range 2) 2337 | -8/Recycling | Entered Scraptown 2741 | -8/Scraptown | Discovered new exit (range 5) 2920 | -8/Scraptown | Scanned Subdweller tech in exchange for log data 2926 | -8/Scraptown | Learned Factory garrison access intel 3445 | -8/Scraptown | Visited UFD Registry 3467 | -8/Scraptown | Visited Cave Peace 3544 | -8/Scraptown | Visited Assassins FH 3599 | -8/Scraptown | Visited TADAMA 3650 | -8/Scraptown | Visited Observation Area 3735 | -8/Scraptown | Visited The Evicted 3792 | -8/Scraptown | Visited Comm Corps 3872 | -8/Scraptown | Visited IN-MT5's Study 3922 | -8/Scraptown | Registered with UFD as "Cogcoil" 3992 | -8/Scraptown | Visited Cartography Club 4344 | -8/Scraptown | Learned location of Lower Caves (-7) 4344 | -8/Scraptown | Learned location of Archives (-6) 4344 | -8/Scraptown | Learned 24 Factory zone layouts 4344 | -8/Scraptown | Learned 8 Research zone layouts 4344 | -8/Scraptown | Learned 16 Research zone layouts 4344 | -8/Scraptown | Learned 4 Mines zone layouts 4344 | -8/Scraptown | Learned 8 Lower Caves zone layouts 4344 | -8/Scraptown | Learned 12 Lower Caves zone layouts 4344 | -8/Scraptown | Learned 24 Upper Caves zone layouts 4344 | -8/Scraptown | Learned location of 2 exits from Research 4344 | -8/Scraptown | Learned location of 1 exit from Lower Caves 4344 | -8/Scraptown | Learned location of 2 exits from Lower Caves 4377 | -8/Scraptown | Visited A0-MCA Data Center 4384 | -8/Scraptown | Given a B rating by A0-MCA 4388 | -8/Scraptown | Found A0-MCA's Component Scanner 4420 | -8/Scraptown | Visited Scrap Suit Storage 4468 | -8/Scraptown | Visited LU-1G1's Boring Crew 4542 | -8/Scraptown | Discovered new exit (range 3) 4610 | -8/Scraptown | Visited Sword Containment 4652 | -8/Scraptown | Visited Scrapoid Pod Storage 4660 | -8/Scraptown | Found Scrapoid Pod 4684 | -8/Scraptown | Visited Science Guys 5134 | -8/Scraptown | Delivered Scrap Shield to a Scientist 5433 | -8/Scraptown | Found Deep Structural Scanner 5497 | -8/Scraptown | Visited Curators Association 5591 | -8/Scraptown | Visited Chapter 10 5773 | -8/Scraptown | Entered Factory 5773 | -6/Factory | Evolved 8 slots: Power x1, Propulsion x2, Utility x5 5774 | -6/Factory | Identified exit to Factory 5775 | -6/Factory | Loaded intel: 4 garrison access locations 5856 | -6/Factory | Discovered exit to Factory (range 13) 6032 | -6/Factory | Lost 3 parts (1p1n1w) 6348 | -6/Factory | Build established: Scavenger-Mutant 6528 | -6/Factory | Lost 3 parts (3n) 6630 | -6/Factory | Self-destructed Last Messages --------------- 06594_ HV Slug penetrates S-27 Virus. 06596_ HV Slug penetrates Wall. 06600_ HV Slug penetrates S-27 Virus. 06600_ HV Slug penetrates Neutrino Reactor. 06602_ HV Slug penetrates S-27 Virus. 06604_ HV Slug penetrates Wall. 06606_ HV Slug penetrates S-27 Virus. 06606_ HV Slug penetrates Neutrino Reactor. 06608_ HV Slug penetrates S-27 Virus. 06608_ HV Slug penetrates Neutrino Reactor. 06610_ HV Slug penetrates Wall. 06612_ HV Slug penetrates S-27 Virus. 06612_ S-27 Virus suffers critical hit (Destroy). 06612_ S-27 Virus destroyed. 06614_ Acquired 21 matter. 06616_ R-10 Processor collects VTOL Module. 06621_ Acquired Lgt. Nuclear Core. 06622_ Acquired 30 matter. 06627_ R-10 Processor collects VTOL Module. 06629_ O-24 Administrator: "IFF HANDSHAKE FAILED. SECURING TERMINAL." Map ----- +----------------------------------------------------+ | ?????????????????????????????????????????????????? | | ?????????????????????????????????????????????????? | | ?????????????????????????????????????????????????? | | ?????????????????????????????????????????????????? | | ?????????????????????????????????????????????????? | | ?????????????????????????????????????????????????? | | ?????????????????????????????????????????????????? | | ?????????????????????????????????????????????????? | | ????????????????????????????????????????????###### | | ????????????????????????????????????????????###### | | ????????????????????????????????????????????###### | | ????????????????????????????????????????????###### | | ???????????????????????????????????????????? | | ????????????????????????????????????????????#### # | | ????????????????????????????????????????????#### # | | ????????????????????????????????????????????#### # | | ?????????????????? "???????????????????????##### # | | ?????????????????? "T??????????????????????##### # | | #?????????????## "" #??? ##### | | #?????????????## "" #### """"""""" ##### # | | #???????######## #### ####" # | | #???????############o##############+####/##### # | | ###???????########## ########## ## ##### # | | #######???########## ! = ##g##### # | | ??? gg # | | #######???#####?####! @ # # | | ????# ??? ####?#### ##+####### # # | | ????# ?????????########## ########!* # | | ????# ?????????##########| "" ##### % ! | | ????# ?????????########## """ ##### !! | | ????# ?????????########## R" ##### | | #???# ???????????????#### = """ ##### | | #???###???????????????#### ##### | | #?????????????????????####=! ##### | | #?????????????????????####= """ #####[ | | #?????????????????????#### """ +Y =%= | | #?????????????????????#### """ #####"########### | | #?????????????????????#### # ! ######### | | #?????????????????????########## # ######### | | #?????????????????????############ !! ######### | | #?????????????????????############ !! ####????? | | #?????????????????????############ ####????? | | #????????????????????????????################????? | | | | | | | | | | | | | | | +----------------------------------------------------+ Best States ------------- Heat Dissipation 75 Coolant Potential 115 Energy Generation 24 Energy Capacity 290 Matter Stores 300 Matter Capacity 300 Sight Range 16 Terrain Scan Density 10 Additional Mass Support 6 Armor Coverage 150 Evasion (%) 55 Recoil Reduction 2 Item Schematics ----------------- None Robot Schematics ------------------ None Fabricated ------------ Nothing Alien Tech Used ----------------- None Achievements -------------- None Challenges ------------ None Game ------ Seed SalvageRingAirjet Manual? 0 Play Time 00:57:09 Cumulative 121.5 hours Start 2024.11.06 @ 19:03:14 End 2024.12.06 @ 23:05:28 Sessions 10 Manual Loads 0 Difficulty Rogue Special Mode None Game No. 85 Rogue 85 Adventurer 0 Explorer 0 Win Type - Total 4 Types 3/0/1/0/0/0/0/0/0 Lore% 48 Gallery% 60 Achievement% 51 Wizard Run 0 Options --------- Layout 0 ASCII 0 Keyboard 1 Movement Arrows Keybinds 0 Fullscreen 1 Font 36/Smallcaps Map View 76x50 Zoom Use 0% Tactical HUD 1 Map Filters NONE Filters NONE Steam 1 RUN: 7f943fe8-7e41-4ed6-8f9a-76b0246c9eaf